bitfinex-derivatives/quotes_SOLF0:USTF0_20260115
["timestamp","ask_amount","ask_price","bid_price","bid_amount"]
[1768482450261,0.04992681,144.72,144.69,3.04640154]
[1768482450770,5.33174022,144.71,144.69,3.04640154]
[1768482450961,0.04992681,144.72,144.69,3.04640154]
[1768482451264,5.3319608,144.71,144.69,3.04640154]
[1768482451460,0.04992681,144.72,144.69,3.04640154]
[1768482451763,5.33168405,144.71,144.69,3.04640154]
[1768482451965,0.04992681,144.72,144.69,3.04640154]
[1768482452162,5.33168405,144.71,144.69,3.04640154]
[1768482452365,0.04992681,144.72,144.69,3.04640154]
[1768482452563,5.33142111,144.71,144.69,3.04640154]
[1768482452764,0.04992681,144.72,144.69,3.04640154]
[1768482452964,5.33142111,144.71,144.69,3.04640154]
[1768482453265,0.04992681,144.72,144.69,3.04640154]
[1768482453565,5.33117026,144.71,144.69,3.04640154]
[1768482453870,0.04992681,144.72,144.69,3.04640154]
[1768482454068,5.33117026,144.71,144.69,3.04640154]
[1768482454268,0.04992681,144.72,144.69,3.04640154]
[1768482454469,5.3309615,144.71,144.69,3.04640154]
[1768482454662,0.04992681,144.72,144.69,3.04640154]
[1768482454967,5.3309615,144.71,144.69,3.04640154]
[1768482455168,0.04992681,144.72,144.69,3.04640154]
[1768482455468,5.33092928,144.71,144.69,3.04640154]
[1768482455767,0.04992681,144.72,144.69,3.04640154]
[1768482455970,5.33103915,144.71,144.69,3.04640154]
[1768482456164,0.04992681,144.72,144.69,3.04640154]
[1768482456361,5.33102555,144.71,144.69,3.04640154]
[1768482456565,0.04992681,144.72,144.69,3.04640154]
[1768482456865,5.33218758,144.71,144.69,3.04640154]
[1768482457064,5.33218758,144.7,144.69,3.04640154]
[1768482460070,0.04992681,144.72,144.69,3.04640154]
[1768482460372,5.33371182,144.71,144.69,3.04640154]
[1768482460564,0.04992681,144.72,144.69,3.04640154]
[1768482460765,5.3345461,144.71,144.69,3.04640154]
[1768482461064,0.04992681,144.72,144.69,3.04640154]
[1768482461256,5.33457669,144.71,144.69,3.04640154]
[1768482461456,5.33457669,144.7,144.69,3.04640154]
[1768482461864,5.33457669,144.71,144.69,3.04640154]
[1768482462065,5.33457669,144.7,144.69,3.04640154]
[1768482462372,5.33457669,144.71,144.69,3.04640154]
[1768482462668,0.04992681,144.72,144.67,6.26926052]
[1768482462669,5.33457669,144.7,144.67,6.26926052]
[1768482462969,0.04992681,144.72,144.67,9.31566206]
[1768482463169,5.33623643,144.71,144.67,9.31566206]
[1768482463369,5.33623643,144.7,144.67,9.31566206]
[1768482463571,0.04992681,144.72,144.67,9.31566206]
[1768482463770,5.33722355,144.71,144.67,9.31566206]
[1768482463975,5.33722355,144.7,144.68,6.2224]
[1768482464170,0.04992681,144.72,144.68,6.2224]
[1768482464370,5.33725935,144.71,144.68,6.2224]
[1768482464574,5.33725935,144.7,144.68,6.2224]
[1768482464770,0.04992681,144.72,144.68,6.2224]
[1768482465072,5.3383641,144.71,144.68,6.2224]
[1768482465274,5.3383641,144.7,144.68,6.2224]
[1768482465473,0.04992681,144.72,144.68,6.2224]
[1768482465670,5.33882683,144.71,144.68,6.2224]
[1768482465874,5.33882683,144.7,144.68,6.2224]
[1768482466074,0.04992681,144.72,144.68,9.26880154]
[1768482466268,5.33911123,144.71,144.68,9.26880154]
[1768482466472,5.33911123,144.7,144.68,9.26880154]
[1768482466671,0.04992681,144.72,144.68,9.26880154]
[1768482466869,5.33911123,144.71,144.68,9.26880154]
[1768482467073,5.33911123,144.7,144.68,9.26880154]
[1768482467266,0.04992681,144.72,144.68,9.26880154]
[1768482467465,5.33927249,144.71,144.68,9.26880154]
[1768482467674,0.04992681,144.72,144.68,9.26880154]
[1768482472175,3.37445358,144.72,144.67,0.04666052]
[1768482472577,8.50181822,144.71,144.67,0.04666052]
[1768482472779,3.32452677,144.71,144.67,0.04666052]
[1768482477781,3.32452677,144.7,144.64,6.224]
[1768482478880,0.04744981,144.68,144.66,0.0473351]
[1768482479784,5.31240262,144.67,144.66,0.0473351]
[1768482480381,8.63692939,144.67,144.61,97.60006043]
[1768482480581,5.31240262,144.66,144.62,3.09136191]
[1768482480781,3.32452677,144.67,144.62,3.09136191]
[1768482480983,5.30903813,144.66,144.62,3.09136191]
[1768482481180,5.30903813,144.65,144.62,3.09136191]
[1768482481384,3.32452677,144.67,144.62,3.09136191]
[1768482481586,0.04731993,144.65,144.62,0.04652954]
[1768482484178,0.04731993,144.65,144.62,9.36279145]
[1768482484495,3.32452677,144.7,144.62,3.13789145]
[1768482484797,5.30083257,144.69,144.62,3.13789145]
[1768482485086,5.30083257,144.68,144.62,3.13789145]
[1768482485293,5.30083257,144.67,144.62,3.13789145]
[1768482485590,3.32452677,144.7,144.62,3.13789145]
[1768482485788,13.78309835,144.69,144.63,9.31586191]
[1768482485990,5.30057353,144.68,144.63,3.09136191]
[1768482486192,5.30057353,144.67,144.63,3.09136191]
[1768482486392,3.32452677,144.69,144.63,3.09136191]
[1768482486594,0.05244528,144.67,144.63,3.09136191]
[1768482487004,0.05244528,144.67,144.64,0.04669176]
[1768482489192,3.37697205,144.67,144.64,0.04669176]
[1768482489385,5.29629467,144.66,144.6,3.09136191]
[1768482489590,3.37697205,144.67,144.6,3.09136191]
[1768482489789,5.29629467,144.66,144.6,3.09136191]
[1768482489992,3.37697205,144.67,144.6,3.09136191]
[1768482490694,3.37697205,144.67,144.62,0.04867254]
[1768482491892,5.29539509,144.66,144.62,0.04867254]
[1768482492100,3.37697205,144.67,144.62,0.04867254]
[1768482493595,8.61724029,144.66,144.62,0.04867254]
[1768482493795,5.29271352,144.65,144.62,0.04867254]
[1768482493989,3.32452677,144.66,144.62,0.04867254]
[1768482494192,5.29356514,144.65,144.62,0.04867254]
[1768482494495,0.05244528,144.67,144.62,0.04867254]
[1768482494699,5.29376719,144.66,144.62,0.04867254]
[1768482494997,0.05244528,144.67,144.62,3.14003445]
[1768482495199,5.29403741,144.66,144.62,3.14003445]
[1768482495401,0.05244528,144.67,144.62,3.14003445]
[1768482495603,5.29388473,144.66,144.62,3.14003445]
[1768482495798,0.05244528,144.67,144.62,3.14003445]
[1768482495994,5.29389852,144.66,144.62,3.14003445]
[1768482496200,0.05244528,144.67,144.62,3.14003445]
[1768482496400,5.29352677,144.66,144.62,3.14003445]
[1768482496596,0.05244528,144.67,144.62,3.14003445]
[1768482496801,5.29352677,144.66,144.62,3.14003445]
[1768482497000,0.05244528,144.67,144.62,3.14003445]
[1768482497196,5.29352677,144.66,144.62,3.14003445]
[1768482497391,0.05244528,144.67,144.62,3.14003445]
[1768482497592,5.29424813,144.66,144.62,3.14003445]
[1768482497801,0.05244528,144.67,144.62,3.14003445]
[1768482498006,5.29404137,144.66,144.62,3.14003445]
[1768482498197,0.05244528,144.67,144.62,3.14003445]
[1768482498399,5.29389584,144.66,144.62,3.14003445]
[1768482498600,0.05244528,144.67,144.62,3.14003445]
[1768482498802,5.29390243,144.66,144.62,3.14003445]
[1768482499108,0.05244528,144.67,144.62,3.14003445]
[1768482499307,5.29362481,144.66,144.62,3.14003445]
[1768482499508,0.05244528,144.67,144.62,3.14003445]
[1768482499809,5.29362481,144.66,144.62,3.14003445]
[1768482500010,0.05244528,144.67,144.62,3.14003445]
[1768482500199,5.29362481,144.66,144.62,3.14003445]
[1768482500395,0.05244528,144.67,144.62,3.14003445]
[1768482500600,5.29333387,144.66,144.62,3.14003445]
[1768482500801,3.3034501,144.66,144.62,0.04867254]
[1768482501309,5.29302422,144.65,144.62,0.04867254]
[1768482501510,3.3034501,144.66,144.62,0.04867254]
[1768482501708,5.29302422,144.65,144.62,0.04867254]
[1768482501906,3.3034501,144.66,144.62,0.04867254]
[1768482502099,5.29351938,144.65,144.62,0.04867254]
[1768482502303,3.3034501,144.66,144.62,0.04867254]
[1768482503113,5.29322905,144.65,144.62,0.04867254]
[1768482503312,3.3034501,144.66,144.62,0.04867254]
[1768482504120,5.2931707,144.65,144.62,0.04867254]
[1768482504315,3.3034501,144.66,144.62,0.04867254]
[1768482507814,5.29300787,144.65,144.62,0.04867254]
[1768482508017,3.3034501,144.66,144.62,0.04867254]
[1768482508208,8.33522245,144.65,144.62,0.04867254]
[1768482508409,3.04237028,144.65,144.62,0.04867254]
[1768482516315,5.30313235,144.64,144.62,0.04867254]
[1768482516516,3.04237028,144.65,144.62,0.04867254]
[1768482516716,5.30311854,144.64,144.62,0.04867254]
[1768482516923,3.04237028,144.65,144.62,0.04867254]
[1768482517122,5.30311854,144.64,144.62,0.04867254]
[1768482517420,3.04237028,144.65,144.62,0.04867254]
[1768482517622,5.30529657,144.64,144.62,0.04867254]
[1768482517821,3.04237028,144.65,144.62,0.04867254]
[1768482518025,5.30529657,144.64,144.62,0.04867254]
[1768482518326,3.04237028,144.65,144.62,0.04867254]
[1768482518508,5.30585303,144.64,144.62,0.04867254]
[1768482518711,3.04237028,144.65,144.62,0.04867254]
[1768482518921,5.30585303,144.64,144.62,0.04867254]
[1768482519119,3.04237028,144.65,144.62,0.04867254]
[1768482519314,5.30647084,144.64,144.62,0.04867254]
[1768482519513,3.04237028,144.65,144.62,0.04867254]
[1768482519822,5.30649908,144.64,144.62,0.04867254]
[1768482520021,3.04237028,144.65,144.62,0.04867254]
[1768482520214,5.30645677,144.64,144.62,0.04867254]
[1768482520421,3.04237028,144.65,144.62,0.04867254]
[1768482520719,5.30716925,144.64,144.62,0.04867254]
[1768482520921,3.04237028,144.65,144.62,0.04867254]
[1768482521122,5.30716925,144.64,144.62,6.27367254]
[1768482521320,3.04237028,144.65,144.62,6.27367254]
[1768482521518,5.30801208,144.64,144.62,6.27367254]
[1768482521711,3.04237028,144.65,144.62,6.27367254]
[1768482521922,5.30801208,144.64,144.62,6.27367254]
[1768482522120,3.04237028,144.65,144.62,6.27367254]
[1768482522322,5.3090299,144.64,144.62,6.27367254]
[1768482522526,3.04237028,144.65,144.62,6.27367254]
[1768482522819,5.3090223,144.64,144.62,6.27367254]
[1768482523021,3.04237028,144.65,144.62,6.27367254]
[1768482523326,2.53233529,144.64,144.62,6.27367254]
[1768482523525,3.04237028,144.65,144.62,6.27367254]
[1768482523718,3.04237028,144.65,144.63,6.2245]
[1768482526032,3.04237028,144.65,144.62,0.04867254]
[1768482526033,0.05244528,144.67,144.64,6.2241]
[1768482526517,3.09481556,144.67,144.64,6.2241]
[1768482526715,2.1437522,144.71,144.65,6.2237]
[1768482526916,5.15662645,144.7,144.64,3.03885022]
[1768482527121,2.1437522,144.73,144.65,99.85145022]
[1768482527315,5.0902037,144.72,144.65,99.85145022]
[1768482527518,5.0902037,144.71,144.65,99.85145022]
[1768482527733,2.1437522,144.73,144.65,99.85145022]
[1768482527915,0.04619572,144.7,144.65,99.85145022]
[1768482528528,0.04619572,144.7,144.68,6.2224]
[1768482529928,0.04619572,144.7,144.68,6.26627184]
[1768482530227,0.04619572,144.7,144.68,0.04387184]
[1768482537031,5.28755244,144.69,144.68,6.26627184]
[1768482537433,5.28755244,144.69,144.65,3.03885022]
[1768482537633,5.531e-05,144.68,144.65,3.03885022]
[1768482537933,0.04619572,144.7,144.65,3.03885022]
[1768482539924,0.04619572,144.7,144.65,9.26225022]
[1768482540127,3.24065199,144.7,144.65,9.26225022]
[1768482540637,3.24065199,144.7,144.66,6.2233]
[1768482543839,3.24065199,144.7,144.63,5.25431902]
[1768482544441,3.24065199,144.7,144.64,3.11056682]
[1768482544842,3.24065199,144.7,144.65,6.2237]
[1768482545142,3.24065199,144.7,144.64,3.11056682]
[1768482546843,3.24065199,144.7,144.66,6.2233]
[1768482549850,5.26103091,144.69,144.66,6.2233]
[1768482550039,3.24065199,144.7,144.66,6.2233]
[1768482550244,5.26103091,144.69,144.66,6.2233]
[1768482550437,3.24065199,144.7,144.66,6.2233]
[1768482550637,5.26112827,144.69,144.66,6.2233]
[1768482550838,3.24065199,144.7,144.66,6.2233]
[1768482551034,5.26112827,144.69,144.66,6.2233]
[1768482551336,3.24065199,144.7,144.66,6.2233]
[1768482551540,5.26126231,144.69,144.66,6.2233]
[1768482551749,3.24065199,144.7,144.66,6.2233]
[1768482551948,5.26126231,144.69,144.66,6.2233]
[1768482552147,3.24065199,144.7,144.66,6.2233]
[1768482552348,5.26130421,144.69,144.66,6.2233]
[1768482552548,3.24065199,144.7,144.66,6.2233]
[1768482552748,5.26143239,144.69,144.66,6.2233]
[1768482552940,3.24065199,144.7,144.66,6.2233]
[1768482553141,5.26143239,144.69,144.66,6.2233]
[1768482553341,3.24065199,144.7,144.66,6.2233]
[1768482553542,5.26164725,144.69,144.66,6.2233]
[1768482553741,3.24065199,144.7,144.66,6.2233]
[1768482553958,5.26164618,144.69,144.64,9.33456682]
[1768482554142,3.24065199,144.7,144.64,9.33456682]
[1768482554343,5.26175262,144.69,144.64,9.33456682]
[1768482554542,3.24065199,144.7,144.64,9.33456682]
[1768482554749,5.26190018,144.69,144.64,9.33456682]
[1768482555051,3.24065199,144.7,144.65,3.11056682]
[1768482555249,5.26190125,144.69,144.65,3.11056682]
[1768482555445,3.24065199,144.7,144.65,3.11056682]
[1768482555649,5.26219551,144.69,144.65,3.11056682]
[1768482555850,3.24065199,144.7,144.65,3.11056682]
[1768482556148,5.26219551,144.69,144.65,3.11056682]
[1768482556450,3.24065199,144.7,144.65,3.11056682]
[1768482556652,5.26253393,144.69,144.65,3.11056682]
[1768482556846,3.24065199,144.7,144.65,3.11056682]
[1768482557047,5.26253393,144.69,144.65,3.11056682]
[1768482557359,3.24065199,144.7,144.65,3.11056682]
[1768482557550,5.26291757,144.69,144.65,3.11056682]
[1768482557748,3.24065199,144.7,144.65,3.11056682]
[1768482557949,5.26291757,144.69,144.65,3.11056682]
[1768482558158,3.24065199,144.7,144.65,3.11056682]
[1768482558358,5.26291757,144.69,144.66,0.04618829]
[1768482558561,3.24065199,144.7,144.66,0.04618829]
[1768482558762,5.26334213,144.69,144.66,0.04618829]
[1768482558963,3.24065199,144.7,144.66,0.04618829]
[1768482559162,5.26334321,144.69,144.66,0.04618829]
[1768482559363,3.24065199,144.7,144.66,0.04618829]
[1768482559564,5.26381623,144.69,144.66,0.04618829]
[1768482559763,3.24065199,144.7,144.66,0.04618829]
[1768482560060,5.26381838,144.69,144.66,0.04618829]
[1768482560263,3.24065199,144.7,144.66,0.04618829]
[1768482560462,5.26434765,144.69,144.66,0.04618829]
[1768482560661,0.04619572,144.7,144.66,9.38526323]
[1768482560968,5.22047472,144.69,144.66,9.38526323]
[1768482561167,0.04619572,144.7,144.67,3.11587494]
[1768482562464,0.04619572,144.7,144.67,9.33847494]
[1768482562662,3.26588371,144.7,144.66,0.04618829]
[1768482565265,3.26588371,144.7,144.63,6.2242]
[1768482565266,3.27517011,144.68,144.63,6.2242]
[1768482566262,3.27517011,144.68,144.59,98.9972522]
[1768482566263,3.27517011,144.68,144.61,6.2251]
[1768482566578,3.32715726,144.67,144.61,6.2251]
[1768482570971,3.32715726,144.67,144.61,9.33551355]
[1768482572868,5.27117622,144.66,144.61,9.33551355]
[1768482573073,5.27117622,144.65,144.61,9.33551355]
[1768482573273,3.32715726,144.67,144.61,9.33551355]
[1768482573474,5.27046156,144.66,144.61,3.11041355]
[1768482573676,5.27046156,144.65,144.61,3.11041355]
[1768482573974,3.32715726,144.67,144.61,3.11041355]
[1768482574178,5.27046156,144.66,144.61,3.11041355]
[1768482574477,5.27046156,144.65,144.61,3.11041355]
[1768482574677,3.32715726,144.67,144.61,3.11041355]
[1768482574976,5.26995878,144.66,144.61,3.11041355]
[1768482575177,5.26995878,144.65,144.61,3.11041355]
[1768482575377,3.32715726,144.67,144.61,3.11041355]
[1768482575579,5.26952869,144.66,144.61,3.11041355]
[1768482575878,5.26952869,144.65,144.61,3.11041355]
[1768482576176,3.32715726,144.67,144.61,3.11041355]
[1768482576377,5.26954646,144.66,144.61,3.11041355]
[1768482576579,5.26954646,144.65,144.61,3.11041355]
[1768482576779,3.32715726,144.67,144.61,3.11041355]
[1768482576979,5.26916966,144.66,144.61,3.11041355]
[1768482577173,5.26916966,144.65,144.61,3.11041355]
[1768482577374,3.32715726,144.67,144.61,3.11041355]
[1768482577578,5.26887622,144.66,144.61,3.11041355]
[1768482577875,5.26887622,144.65,144.61,5.25416575]
[1768482578081,3.32715726,144.67,144.61,5.25416575]
[1768482578269,5.26887622,144.66,144.61,5.25416575]
[1768482578466,5.26887622,144.65,144.61,5.25416575]
[1768482578669,3.32715726,144.67,144.62,0.04473645]
[1768482578982,5.26864562,144.66,144.62,0.04473645]
[1768482579176,5.26864562,144.65,144.62,0.04473645]
[1768482579375,3.32715726,144.67,144.62,0.04473645]
[1768482579576,5.26847373,144.66,144.62,0.04473645]
[1768482579876,5.26847373,144.65,144.62,0.04473645]
[1768482580071,5.26891479,144.64,144.62,0.04473645]
[1768482580374,3.32715726,144.67,144.62,0.04473645]
[1768482580579,5.2681818,144.66,144.62,0.04473645]
[1768482580879,5.2681818,144.65,144.62,0.04473645]
[1768482581077,3.32715726,144.67,144.62,0.04473645]
[1768482581280,5.26829206,144.66,144.62,0.04473645]
[1768482581480,5.26829206,144.65,144.62,0.04473645]
[1768482581682,3.32715726,144.67,144.62,0.04473645]
[1768482581882,5.26787182,144.66,144.62,0.04473645]
[1768482582082,5.26787182,144.65,144.62,0.04473645]
[1768482582280,3.32715726,144.67,144.62,0.04473645]
[1768482582576,5.26773229,144.66,144.62,0.04473645]
[1768482582773,5.26773229,144.65,144.62,0.04473645]
[1768482582979,3.32715726,144.67,144.62,0.04473645]
[1768482583180,5.26773229,144.66,144.62,0.04473645]
[1768482583482,5.26773229,144.65,144.62,0.04473645]
[1768482583678,3.32715726,144.67,144.62,0.04473645]
[1768482583881,8.54260402,144.66,144.62,0.04473645]
[1768482584082,5.26743391,144.65,144.62,0.04473645]
[1768482584284,3.27517011,144.66,144.62,0.04473645]
[1768482584485,5.26718126,144.65,144.62,0.04473645]
[1768482584678,3.32715726,144.67,144.62,0.04473645]
[1768482584875,5.26717671,144.66,144.62,0.04473645]
[1768482585076,5.26717671,144.65,144.62,0.04473645]
[1768482585277,3.32715726,144.67,144.62,0.04473645]
[1768482585578,5.26702724,144.66,144.62,0.04473645]
[1768482585777,5.26702724,144.65,144.62,0.04473645]
[1768482585983,3.32715726,144.67,144.62,0.04473645]
[1768482586183,8.54215532,144.66,144.62,0.04473645]
[1768482586480,5.26698521,144.65,144.62,0.04473645]
[1768482586682,3.27517011,144.66,144.62,0.04473645]
[1768482586878,5.26681988,144.65,144.62,0.04473645]
[1768482587084,3.27517011,144.66,144.62,0.04473645]
[1768482587380,5.26681988,144.65,144.62,0.04473645]
[1768482587581,3.27517011,144.66,144.62,0.04473645]
[1768482587775,5.266693,144.65,144.62,0.04473645]
[1768482587976,3.27517011,144.66,144.62,0.04473645]
[1768482588182,5.26669408,144.65,144.62,0.04473645]
[1768482588376,3.27517011,144.66,144.62,0.04473645]
[1768482588583,5.26660548,144.65,144.62,6.26973645]
[1768482588782,3.27517011,144.66,144.62,6.26973645]
[1768482588990,5.26660548,144.65,144.62,6.26973645]
[1768482589182,3.27517011,144.66,144.62,6.26973645]
[1768482589384,5.26660548,144.65,144.62,6.26973645]
[1768482589682,3.27517011,144.66,144.62,6.26973645]
[1768482589882,5.26631829,144.65,144.62,6.26973645]
[1768482590079,3.27517011,144.66,144.62,6.26973645]
[1768482590280,5.26629324,144.65,144.62,6.26973645]
[1768482590485,3.27517011,144.66,144.62,6.26973645]
[1768482590686,5.26627476,144.65,144.62,6.26973645]
[1768482590887,3.27517011,144.66,144.62,6.26973645]
[1768482591082,5.26627476,144.65,144.62,6.26973645]
[1768482591285,3.27517011,144.66,144.62,6.26973645]
[1768482591585,5.2662969,144.65,144.62,6.26973645]
[1768482591783,3.27517011,144.66,144.62,6.26973645]
[1768482591975,5.26708653,144.65,144.62,6.26973645]
[1768482592181,3.27517011,144.66,144.62,6.26973645]
[1768482592477,5.26715242,144.65,144.62,6.26973645]
[1768482592677,3.27517011,144.66,144.62,6.26973645]
[1768482592877,5.26715242,144.65,144.62,6.26973645]
[1768482593174,3.27517011,144.66,144.62,6.26973645]
[1768482593478,5.26713866,144.65,144.62,6.26973645]
[1768482593679,3.27517011,144.66,144.62,6.26973645]
[1768482593876,5.26724381,144.65,144.62,6.26973645]
[1768482594078,3.27517011,144.66,144.62,6.26973645]
[1768482594281,5.26722349,144.65,144.62,6.26973645]
[1768482594483,3.27517011,144.66,144.62,6.26973645]
[1768482594684,5.26736537,144.65,144.62,6.26973645]
[1768482594883,3.27517011,144.66,144.62,6.26973645]
[1768482595091,5.26737913,144.65,144.62,6.26973645]
[1768482595388,3.27517011,144.66,144.62,6.26973645]
[1768482595589,5.26755014,144.65,144.62,6.26973645]
[1768482595789,3.27517011,144.66,144.62,6.26973645]
[1768482595994,5.26756378,144.65,144.62,6.26973645]
[1768482596195,3.27517011,144.66,144.62,6.26973645]
[1768482596494,5.26779219,144.65,144.62,6.26973645]
[1768482596693,3.27517011,144.66,144.62,6.26973645]
[1768482596900,5.26779226,144.65,144.62,6.26973645]
[1768482597083,3.27517011,144.66,144.62,6.26973645]
[1768482597281,5.26779226,144.65,144.62,6.26973645]
[1768482597485,3.27517011,144.66,144.62,6.26973645]
[1768482597685,5.26806911,144.65,144.62,6.26973645]
[1768482597881,3.27517011,144.66,144.62,6.26973645]
[1768482598096,5.26806911,144.65,144.62,6.26973645]
[1768482598295,3.27517011,144.66,144.62,6.26973645]
[1768482598491,5.26839056,144.65,144.62,6.26973645]
[1768482598795,3.27517011,144.66,144.62,6.26973645]
[1768482598999,5.26839056,144.65,144.62,6.26973645]
[1768482599293,3.27517011,144.66,144.62,6.26973645]
[1768482599494,5.2687631,144.65,144.62,6.26973645]
[1768482599696,3.27517011,144.66,144.62,6.26973645]
[1768482599895,5.2687631,144.65,144.62,6.26973645]
[1768482600095,3.27517011,144.66,144.62,6.26973645]
[1768482600296,5.26874934,144.65,144.62,6.26973645]
[1768482600486,3.27517011,144.66,144.62,6.26973645]
[1768482600692,5.26936469,144.65,144.63,6.2246]
[1768482600894,0.05198715,144.67,144.63,6.2246]
[1768482601094,5.26941756,144.66,144.63,6.2246]
[1768482601288,1.756e-05,144.65,144.64,6.2242]
[1768482601487,0.05198715,144.67,144.62,3.07894612]
[1768482602798,0.05198715,144.67,144.64,6.2238]
[1768482608910,0.05198715,144.67,144.62,9.30394612]
[1768482611606,3.33487695,144.67,144.62,6.26973645]
[1768482613315,5.2561728,144.66,144.62,6.26973645]
[1768482613501,5.2561728,144.65,144.62,6.26973645]
[1768482613705,5.2561728,144.64,144.62,6.26973645]
[1768482613906,3.33487695,144.67,144.62,6.26973645]
[1768482614106,5.25621674,144.66,144.62,6.26973645]
[1768482614310,5.25621674,144.65,144.62,6.26973645]
[1768482614510,5.25621674,144.64,144.62,6.26973645]
[1768482614707,3.33487695,144.67,144.62,6.26973645]
[1768482615015,5.25619544,144.66,144.62,0.04473645]
[1768482615221,5.25619544,144.65,144.62,0.04473645]
[1768482615420,5.25619544,144.64,144.62,0.04473645]
[1768482615620,3.33487695,144.67,144.62,0.04473645]
[1768482615920,5.25617713,144.66,144.62,0.04473645]
[1768482616119,5.25617713,144.65,144.62,0.04473645]
[1768482616419,5.25617713,144.64,144.62,0.04473645]
[1768482616717,3.33487695,144.67,144.62,0.04473645]
[1768482616918,5.25616127,144.66,144.62,0.04473645]
[1768482617218,5.25616127,144.65,144.62,0.04473645]
[1768482617520,5.25616127,144.64,144.62,0.04473645]
[1768482617713,3.33487695,144.67,144.62,0.04473645]
[1768482617916,5.25614827,144.66,144.62,0.04473645]
[1768482618118,5.25614827,144.65,144.62,0.04473645]
[1768482618321,5.25614827,144.64,144.62,0.04473645]
[1768482618622,3.33487695,144.67,144.62,0.04473645]
[1768482618819,5.2561381,144.66,144.62,0.04473645]
[1768482619017,5.2561381,144.65,144.62,0.04473645]
[1768482619219,5.2561381,144.64,144.62,0.04473645]
[1768482619420,3.33487695,144.67,144.62,0.04473645]
[1768482619720,5.25613075,144.66,144.62,0.04473645]
[1768482619921,5.25613075,144.65,144.62,0.04473645]
[1768482620120,5.25613075,144.64,144.62,0.04473645]
[1768482620315,3.33487695,144.67,144.62,0.04473645]
[1768482620517,5.25612619,144.66,144.62,0.04473645]
[1768482620716,5.25612619,144.65,144.62,0.04473645]
[1768482621022,5.25612619,144.64,144.62,0.04473645]
[1768482621320,3.33487695,144.67,144.62,0.04473645]
[1768482621512,5.25612443,144.66,144.62,0.04473645]
[1768482621714,5.25612443,144.65,144.62,0.04473645]
[1768482621910,5.25612443,144.64,144.62,0.04473645]
[1768482622123,3.33487695,144.67,144.62,0.04473645]
[1768482622325,5.25522222,144.66,144.62,0.04473645]
[1768482622523,5.25522222,144.65,144.62,0.04473645]
[1768482622822,5.25522222,144.64,144.62,0.04473645]
[1768482623129,3.33487695,144.67,144.62,0.04473645]
[1768482623318,5.25522324,144.66,144.62,0.04473645]
[1768482623520,5.25522324,144.65,144.62,0.04473645]
[1768482623716,5.25522324,144.64,144.62,0.04473645]
[1768482623916,3.33487695,144.67,144.62,6.26963645]
[1768482624117,5.25522704,144.66,144.62,6.26963645]
[1768482624417,5.25522704,144.65,144.62,6.26963645]
[1768482624613,2.704e-05,144.64,144.63,6.2244]
[1768482624925,3.33487695,144.67,144.63,6.2244]
[1768482627424,3.33487695,144.67,144.64,6.2242]
[1768482627619,0.05198715,144.67,144.62,3.19260029]
[1768482628027,0.05198715,144.67,144.65,6.2233]
[1768482629423,81.72,144.73,144.66,6.2233]
[1768482629621,5.02003244,144.72,144.65,3.14786384]
[1768482629924,5.02003244,144.71,144.65,3.14786384]
[1768482630126,5.02003244,144.7,144.65,3.14786384]
[1768482630315,1.2033195,144.74,144.65,3.14786384]
[1768482630513,0.05211512,144.71,144.68,0.04917949]
[1768482630717,5.01824057,144.7,144.68,0.04917949]
[1768482631220,0.05211512,144.71,144.68,0.04917949]
[1768482631426,2.96435362,144.71,144.68,0.04917949]
[1768482636523,5.22362968,144.7,144.68,0.04917949]
[1768482636829,5.22362968,144.69,144.68,0.04917949]
[1768482638119,5.22362968,144.69,144.68,6.27157949]
[1768482639233,5.22362968,144.69,144.68,0.04917949]
[1768482640031,2.74674427,144.69,144.68,0.04917949]
[1768482640225,2.96435362,144.71,144.68,0.04917949]
[1768482652144,5.20549655,144.7,144.68,0.04917949]
[1768482652338,5.20549655,144.69,144.68,0.04917949]
[1768482660752,5.20549655,144.69,144.66,6.2233]
[1768482660953,2.90736246,144.7,144.64,3.24845146]
[1768482661153,5.20588454,144.69,144.65,6.2236]
[1768482661348,5.20588454,144.68,144.65,6.2236]
[1768482661548,2.90736246,144.7,144.65,6.2236]
[1768482661845,5.25398475,144.69,144.65,6.2236]
[1768482662042,5.20631506,144.68,144.65,6.2236]
[1768482662254,0.04766969,144.69,144.65,6.2236]
[1768482662446,5.20676709,144.68,144.65,6.2236]
[1768482662647,0.04766969,144.69,144.65,6.2236]
[1768482662952,5.20676709,144.68,144.65,6.2236]
[1768482663153,0.04766969,144.69,144.65,6.2236]
[1768482663345,5.20718201,144.68,144.65,6.2236]
[1768482663547,0.04766969,144.69,144.65,6.2236]
[1768482663748,5.2072801,144.68,144.65,6.2236]
[1768482663951,0.04766969,144.69,144.65,6.2236]
[1768482664150,5.20750156,144.68,144.65,6.26979602]
[1768482664345,0.04766969,144.69,144.65,6.26979602]
[1768482664550,5.20800175,144.68,144.65,6.26979602]
[1768482664750,0.04766969,144.69,144.65,6.26979602]
[1768482664952,5.20789155,144.68,144.65,6.26979602]
[1768482665250,0.04766969,144.69,144.65,6.26979602]
[1768482665445,5.20854818,144.68,144.65,6.26979602]
[1768482665657,0.04766969,144.69,144.65,6.26979602]